[Event "*** Titled Tuesday Blitz"]
[Site "Chess.com"]
[Date "2019.03.05"]
[Round "3"]
[White "MatBobula"]
[Black "Generalas"]
[Result "1-0"]
[WhiteElo "2280"]
[BlackElo "2167"]
[TimeControl "180+2"]
[EndTime "13:41:08 PST"]
[Termination "MatBobula won by resignation"]

1. d4 {[%clk 0:03:01.9]} 1... Nf6 {[%clk 0:02:58]} 2. c4 {[%clk 0:03:01.5]} 2...
e6 {[%clk 0:02:58.6]} 3. Nf3 {[%clk 0:02:55.4]} 3... c5 {[%clk 0:02:55.5]} 4. d5
{[%clk 0:02:55.9]} 4... b5 {[%clk 0:02:55.4]} 5. Bg5 {[%clk 0:02:54.3]} 5...
Qa5+ {[%clk 0:02:53.2]} 6. Nbd2 {[%clk 0:02:37.2]} 6... bxc4 {[%clk 0:02:46.7]}
7. Bxf6 {[%clk 0:02:24.3]} 7... gxf6 {[%clk 0:02:46.8]} 8. e4 {[%clk 0:02:21.4]}
8... Bb7 {[%clk 0:02:17.5]} 9. Bxc4 {[%clk 0:02:18.4]} 9... Rg8 {[%clk
0:01:54.7]} 10. O-O {[%clk 0:02:12.9]} 10... Na6 {[%clk 0:01:46.6]} 11. Qe2
{[%clk 0:01:58.3]} 11... Nc7 {[%clk 0:01:39.7]} 12. Rfd1 {[%clk 0:01:38.5]}
12... Bh6 {[%clk 0:01:31.2]} 13. Nf1 {[%clk 0:01:24]} 13... Ba6 {[%clk
0:00:45.8]} 14. a3 {[%clk 0:00:53.4]} 14... Bxc4 {[%clk 0:00:40.5]} 15. Qxc4
{[%clk 0:00:55.3]} 15... Qb5 {[%clk 0:00:41.6]} 16. Qc3 {[%clk 0:00:51.2]} 16...
Rb8 {[%clk 0:00:38.5]} 17. Qxf6 {[%clk 0:00:49.3]} 17... Bg7 {[%clk 0:00:38.2]}
18. Qf4 {[%clk 0:00:44.7]} 18... Qb7 {[%clk 0:00:12.6]} 19. Rab1 {[%clk
0:00:37.2]} 19... h6 {[%clk 0:00:06.5]} 20. Ne3 {[%clk 0:00:32.8]} 20... Nb5
{[%clk 0:00:07.2]} 21. e5 {[%clk 0:00:23.6]} 21... Qc7 {[%clk 0:00:04.3]} 22.
Nc4 {[%clk 0:00:19.4]} 22... exd5 {[%clk 0:00:04.6]} 23. Rxd5 {[%clk 0:00:18.6]}
23... Kf8 {[%clk 0:00:04.1]} 24. a4 {[%clk 0:00:19]} 24... Nd4 {[%clk
0:00:02.7]} 25. Nxd4 {[%clk 0:00:18.1]} 25... cxd4 {[%clk 0:00:04.6]} 26. Nd6
{[%clk 0:00:18.5]} 26... f6 {[%clk 0:00:03.2]} 27. exf6 {[%clk 0:00:18.5]} 1-0

[Event "*** Titled Tuesday Blitz"]
[Site "Chess.com"]
[Date "2019.03.05"]
[Round "3"]
[White "HanSchut"]
[Black "belisarius64"]
[Result "1/2-1/2"]
[WhiteElo "2334"]
[BlackElo "2487"]
[TimeControl "180+2"]
[EndTime "13:41:09 PST"]
[Termination "Game drawn by agreement"]

1. e4 {[%clk 0:03:01.9]} 1... c5 {[%clk 0:02:57.8]} 2. Nf3 {[%clk 0:03:02.2]}
2... d6 {[%clk 0:02:50.5]} 3. d4 {[%clk 0:03:02.7]} 3... cxd4 {[%clk 0:02:52.4]}
4. Nxd4 {[%clk 0:03:03.8]} 4... Nf6 {[%clk 0:02:53.9]} 5. f3 {[%clk 0:03:05.3]}
5... g6 {[%clk 0:02:47.2]} 6. c4 {[%clk 0:03:05.7]} 6... Bg7 {[%clk 0:02:48.7]}
7. Be3 {[%clk 0:03:07.1]} 7... O-O {[%clk 0:02:50.2]} 8. Qd2 {[%clk 0:03:08.6]}
8... Nc6 {[%clk 0:02:47.2]} 9. Nc3 {[%clk 0:03:10]} 9... Bd7 {[%clk 0:02:48.4]}
10. Be2 {[%clk 0:03:10]} 10... Nxd4 {[%clk 0:02:47.4]} 11. Bxd4 {[%clk
0:03:10.6]} 11... Qa5 {[%clk 0:02:49.3]} 12. O-O {[%clk 0:03:00.1]} 12... Rfc8
{[%clk 0:02:49.9]} 13. Rfd1 {[%clk 0:02:55.4]} 13... a6 {[%clk 0:02:51]} 14.
Rac1 {[%clk 0:02:38.4]} 14... h5 {[%clk 0:02:50.2]} 15. Kh1 {[%clk 0:02:25.5]}
15... b5 {[%clk 0:02:47.4]} 16. Bxf6 {[%clk 0:02:22.8]} 16... Bxf6 {[%clk
0:02:47.9]} 17. Nd5 {[%clk 0:02:24.3]} 17... Qxd2 {[%clk 0:02:48.8]} 18. Nxf6+
{[%clk 0:02:24.7]} 18... Kg7 {[%clk 0:02:50.3]} 19. Nxh5+ {[%clk 0:02:23.5]}
19... gxh5 {[%clk 0:02:50.3]} 20. Rxd2 {[%clk 0:02:24.4]} 20... bxc4 {[%clk
0:02:51.9]} 21. Rxc4 {[%clk 0:02:22.6]} 21... Rxc4 {[%clk 0:02:52.2]} 22. Bxc4
{[%clk 0:02:23.8]} 22... a5 {[%clk 0:02:52.9]} 23. e5 {[%clk 0:02:09.4]} 23...
Rc8 {[%clk 0:02:51.2]} 24. b3 {[%clk 0:02:05.9]} 24... Be6 {[%clk 0:02:51.4]}
25. exd6 {[%clk 0:02:00.7]} 25... exd6 {[%clk 0:02:51.7]} 26. Rc2 {[%clk
0:01:26.6]} 26... Bf5 {[%clk 0:02:45.8]} 27. Rd2 {[%clk 0:01:19.9]} 27... Be6
{[%clk 0:02:30.8]} 28. Bf1 {[%clk 0:01:01.4]} 28... Rc1 {[%clk 0:02:22.1]} 29.
Kg1 {[%clk 0:01:01.3]} 29... Ra1 {[%clk 0:02:21.6]} 30. Kf2 {[%clk 0:00:59.3]}
30... Kf6 {[%clk 0:02:22.7]} 31. Bd3 {[%clk 0:00:47.8]} 31... Ke7 {[%clk
0:02:12.4]} 32. Be4 {[%clk 0:00:39.1]} 32... f5 {[%clk 0:02:09]} 33. Bd3 {[%clk
0:00:35.4]} 33... f4 {[%clk 0:01:58.8]} 34. g3 {[%clk 0:00:34.5]} 34... fxg3+
{[%clk 0:01:59.3]} 35. Kxg3 {[%clk 0:00:33.5]} 35... Kf6 {[%clk 0:02:00.4]} 36.
Kh4 {[%clk 0:00:31.5]} 36... Bf7 {[%clk 0:02:01.6]} 37. Bc4 {[%clk 0:00:25.4]}
37... d5 {[%clk 0:01:40.3]} 38. Bxd5 {[%clk 0:00:21.4]} 38... Bxd5 {[%clk
0:01:42.2]} 39. Rxd5 {[%clk 0:00:22.4]} 39... Rxa2 {[%clk 0:01:44.1]} 40. Kg3
{[%clk 0:00:21.3]} 40... h4+ {[%clk 0:01:45.2]} 41. Kxh4 {[%clk 0:00:20.6]}
41... Rxh2+ {[%clk 0:01:46]} 42. Kg4 {[%clk 0:00:22.1]} 42... Rb2 {[%clk
0:01:46.5]} 43. Rxa5 {[%clk 0:00:21.9]} 43... Rxb3 {[%clk 0:01:47.8]} 44. f4
{[%clk 0:00:23.4]} 44... Kf7 {[%clk 0:01:47.2]} 45. Ra6 {[%clk 0:00:23.2]} 45...
Rb5 {[%clk 0:01:46.8]} 46. f5 {[%clk 0:00:23.8]} 46... Rb1 {[%clk 0:01:48]} 47.
Ra7+ {[%clk 0:00:22.9]} 47... Kf6 {[%clk 0:01:48.9]} 48. Ra6+ {[%clk 0:00:24.4]}
48... Kf7 {[%clk 0:01:50.3]} 49. Kg5 {[%clk 0:00:24.6]} 49... Rg1+ {[%clk
0:01:50.8]} 50. Kf4 {[%clk 0:00:26.2]} 50... Rf1+ {[%clk 0:01:52.4]} 51. Ke5
{[%clk 0:00:27.5]} 51... Re1+ {[%clk 0:01:54]} 52. Kf4 {[%clk 0:00:28.8]} 52...
Rf1+ {[%clk 0:01:55.4]} 53. Kg4 {[%clk 0:00:29.6]} 53... Rg1+ {[%clk 0:01:56.8]}
54. Kf4 {[%clk 0:00:30.4]} 54... Rf1+ {[%clk 0:01:58.1]} 55. Ke5 {[%clk
0:00:31.2]} 55... Re1+ {[%clk 0:01:59.6]} 56. Kf4 {[%clk 0:00:30.2]} 56... Rf1+
{[%clk 0:02:00.9]} 57. Kg5 {[%clk 0:00:31.3]} 57... Rg1+ {[%clk 0:02:01.9]}
1/2-1/2

[Event "*** Titled Tuesday Blitz"]
[Site "Chess.com"]
[Date "2019.03.05"]
[Round "3"]
[White "1stSecond"]
[Black "Korchmar_Vasiliy"]
[Result "0-1"]
[WhiteElo "2743"]
[BlackElo "2750"]
[TimeControl "180+2"]
[EndTime "13:41:10 PST"]
[Termination "Korchmar_Vasiliy won by resignation"]

1. Nf3 {[%clk 0:03:01.9]} 1... c5 {[%clk 0:03:00.5]} 2. g3 {[%clk 0:02:59.5]}
2... Nc6 {[%clk 0:03:01.7]} 3. Bg2 {[%clk 0:02:59]} 3... g6 {[%clk 0:03:02.6]}
4. O-O {[%clk 0:02:59.4]} 4... Bg7 {[%clk 0:03:04.2]} 5. Nc3 {[%clk 0:02:44.9]}
5... e5 {[%clk 0:03:00]} 6. e4 {[%clk 0:02:37.1]} 6... Nge7 {[%clk 0:03:00.9]}
7. d3 {[%clk 0:02:29.2]} 7... d6 {[%clk 0:03:02.1]} 8. a3 {[%clk 0:02:29.5]}
8... O-O {[%clk 0:02:59.3]} 9. Rb1 {[%clk 0:02:25.9]} 9... a5 {[%clk 0:02:58.8]}
10. Nd2 {[%clk 0:02:27.1]} 10... f5 {[%clk 0:02:42]} 11. exf5 {[%clk 0:02:27.2]}
11... gxf5 {[%clk 0:02:43.9]} 12. Nd5 {[%clk 0:02:20.2]} 12... Nxd5 {[%clk
0:02:41.5]} 13. Bxd5+ {[%clk 0:02:20.8]} 13... Kh8 {[%clk 0:02:43.3]} 14. Qh5
{[%clk 0:02:15.9]} 14... Ne7 {[%clk 0:02:27]} 15. Bg2 {[%clk 0:02:16.7]} 15...
d5 {[%clk 0:02:21.9]} 16. c4 {[%clk 0:02:15.8]} 16... Be6 {[%clk 0:02:09]} 17.
Nf3 {[%clk 0:02:11.3]} 17... Bf7 {[%clk 0:01:56.1]} 18. Qh3 {[%clk 0:02:09.3]}
18... dxc4 {[%clk 0:01:49.2]} 19. Bh6 {[%clk 0:02:06.4]} 19... cxd3 {[%clk
0:01:40.8]} 20. Bxg7+ {[%clk 0:02:06.8]} 20... Kxg7 {[%clk 0:01:42.7]} 21. Nxe5
{[%clk 0:02:08.1]} 21... Bb3 {[%clk 0:01:38]} 22. g4 {[%clk 0:01:30.8]} 22...
Bc2 {[%clk 0:01:34.1]} 23. g5 {[%clk 0:01:27.5]} 23... Qd4 {[%clk 0:01:24]} 24.
Qh6+ {[%clk 0:01:23.5]} 24... Kg8 {[%clk 0:01:25.4]} 25. Qe6+ {[%clk 0:01:24.1]}
25... Kh8 {[%clk 0:01:21.1]} 26. Nd7 {[%clk 0:00:58.3]} 26... Rfd8 {[%clk
0:01:06.4]} 27. Nf6 {[%clk 0:00:58.2]} 27... Ng8 {[%clk 0:01:00.8]} 28. Nh5
{[%clk 0:00:22.7]} 28... Bxb1 {[%clk 0:00:57.3]} 29. Rxb1 {[%clk 0:00:24.6]}
29... d2 {[%clk 0:00:58.3]} 30. Bf3 {[%clk 0:00:26.1]} 30... Re8 {[%clk
0:00:53.1]} 31. Qxf5 {[%clk 0:00:20.4]} 31... Re1+ {[%clk 0:00:53.7]} 32. Kg2
{[%clk 0:00:22]} 32... Rxb1 {[%clk 0:00:43.8]} 33. Qxb1 {[%clk 0:00:23.9]} 33...
Rf8 {[%clk 0:00:38.3]} 34. h3 {[%clk 0:00:17.1]} 34... Rxf3 {[%clk 0:00:37.6]}
0-1

[Event "*** Titled Tuesday Blitz"]
[Site "Chess.com"]
[Date "2019.03.05"]
[Round "3"]
[White "mlchen"]
[Black "mikhaillushenkov"]
[Result "1-0"]
[WhiteElo "2491"]
[BlackElo "2610"]
[TimeControl "180+2"]
[EndTime "13:41:19 PST"]
[Termination "mlchen won by resignation"]

1. e4 {[%clk 0:03:01.9]} 1... e6 {[%clk 0:02:56.9]} 2. d4 {[%clk 0:03:02.3]}
2... d5 {[%clk 0:02:57.8]} 3. Nd2 {[%clk 0:03:03.8]} 3... Nf6 {[%clk 0:02:58.4]}
4. e5 {[%clk 0:03:02.9]} 4... Nfd7 {[%clk 0:02:59.8]} 5. Bd3 {[%clk 0:03:04.3]}
5... c5 {[%clk 0:02:59.9]} 6. c3 {[%clk 0:03:05.5]} 6... Nc6 {[%clk 0:03:00.8]}
7. Ne2 {[%clk 0:03:05.6]} 7... cxd4 {[%clk 0:03:01.9]} 8. cxd4 {[%clk
0:03:06.5]} 8... f6 {[%clk 0:03:03.5]} 9. exf6 {[%clk 0:03:06.5]} 9... Qxf6
{[%clk 0:03:05.4]} 10. Nf3 {[%clk 0:03:05.1]} 10... h6 {[%clk 0:03:04.4]} 11.
O-O {[%clk 0:02:55.9]} 11... Bd6 {[%clk 0:03:05.1]} 12. Ng3 {[%clk 0:02:24.9]}
12... O-O {[%clk 0:03:05.4]} 13. Be3 {[%clk 0:02:12]} 13... Rd8 {[%clk
0:03:05.3]} 14. Nh5 {[%clk 0:02:07.9]} 14... Qf7 {[%clk 0:02:55.9]} 15. Nh4
{[%clk 0:02:06.4]} 15... Nf8 {[%clk 0:02:56.6]} 16. Rc1 {[%clk 0:01:53.8]} 16...
Bd7 {[%clk 0:02:53]} 17. Bb1 {[%clk 0:01:50.6]} 17... g5 {[%clk 0:02:29.5]} 18.
Qg4 {[%clk 0:01:16.4]} 18... Kh8 {[%clk 0:01:59.8]} 19. Bxg5 {[%clk 0:01:13.3]}
19... hxg5 {[%clk 0:02:01.7]} 20. Qxg5 {[%clk 0:01:14.3]} 20... Nh7 {[%clk
0:00:57.9]} 21. Bxh7 {[%clk 0:01:12.5]} 21... Kxh7 {[%clk 0:00:53.1]} 22. Nf6+
{[%clk 0:01:12.3]} 22... Qxf6 {[%clk 0:00:38.9]} 23. Qxf6 {[%clk 0:01:13.4]}
23... Rg8 {[%clk 0:00:39.7]} 24. Qf7+ {[%clk 0:00:57.1]} 24... Rg7 {[%clk
0:00:40.6]} 25. Qh5+ {[%clk 0:00:58.5]} 25... Kg8 {[%clk 0:00:42.2]} 26. Rc3
{[%clk 0:00:44.5]} 26... Be8 {[%clk 0:00:36.2]} 27. Qd1 {[%clk 0:00:39.7]} 27...
Be7 {[%clk 0:00:33.3]} 28. Rg3 {[%clk 0:00:36.4]} 28... Bf6 {[%clk 0:00:31.1]}
29. Rxg7+ {[%clk 0:00:35]} 29... Bxg7 {[%clk 0:00:33]} 30. Qg4 {[%clk
0:00:33.7]} 30... Nxd4 {[%clk 0:00:33.6]} 31. Rd1 {[%clk 0:00:34.9]} 31... Nc6
{[%clk 0:00:27.7]} 32. Qxe6+ {[%clk 0:00:33.5]} 32... Bf7 {[%clk 0:00:29.3]} 33.
Qg4 {[%clk 0:00:35]} 33... Kf8 {[%clk 0:00:30.1]} 34. Nf5 {[%clk 0:00:33.9]}
34... Bf6 {[%clk 0:00:31.6]} 35. Qf4 {[%clk 0:00:32.5]} 35... Be5 {[%clk
0:00:27]} 36. Qh6+ {[%clk 0:00:32.1]} 36... Ke8 {[%clk 0:00:28.6]} 37. Nd6+
{[%clk 0:00:28.6]} 37... Bxd6 {[%clk 0:00:28.6]} 38. Qxd6 {[%clk 0:00:29.7]}
38... Ne7 {[%clk 0:00:30.4]} 39. Re1 {[%clk 0:00:30]} 39... Kf8 {[%clk
0:00:31.7]} 40. Qxe7+ {[%clk 0:00:30.9]} 40... Kg8 {[%clk 0:00:33.6]} 41. Qg5+
{[%clk 0:00:32]} 1-0

[Event "*** Titled Tuesday Blitz"]
[Site "Chess.com"]
[Date "2019.03.05"]
[Round "3"]
[White "King_of_the_wing"]
[Black "payto1"]
[Result "0-1"]
[WhiteElo "2158"]
[BlackElo "2148"]
[TimeControl "180+2"]
[EndTime "13:41:21 PST"]
[Termination "payto1 won on time"]

1. e4 {[%clk 0:03:01.9]} 1... e6 {[%clk 0:02:59.5]} 2. d4 {[%clk 0:03:02.7]}
2... d5 {[%clk 0:02:58]} 3. Nc3 {[%clk 0:03:04.2]} 3... Nf6 {[%clk 0:02:57.5]}
4. Bg5 {[%clk 0:03:04.3]} 4... dxe4 {[%clk 0:02:56.3]} 5. Nxe4 {[%clk
0:02:57.9]} 5... Be7 {[%clk 0:02:48.9]} 6. Bxf6 {[%clk 0:02:59.1]} 6... gxf6
{[%clk 0:02:49.5]} 7. Bd3 {[%clk 0:02:57]} 7... f5 {[%clk 0:02:48.1]} 8. Ng3
{[%clk 0:02:56.7]} 8... a6 {[%clk 0:02:41.4]} 9. Nf3 {[%clk 0:02:46.6]} 9... b5
{[%clk 0:02:38.5]} 10. c3 {[%clk 0:02:47.7]} 10... Bb7 {[%clk 0:02:31.5]} 11.
Qe2 {[%clk 0:02:41.3]} 11... Nd7 {[%clk 0:02:27.3]} 12. Nh5 {[%clk 0:02:34.1]}
12... Rg8 {[%clk 0:02:11.9]} 13. O-O-O {[%clk 0:02:11.2]} 13... Rxg2 {[%clk
0:01:56.3]} 14. Rhg1 {[%clk 0:02:12]} 14... Rg4 {[%clk 0:01:48.6]} 15. h3 {[%clk
0:02:01.6]} 15... Rg6 {[%clk 0:01:42.9]} 16. Ne5 {[%clk 0:01:49.3]} 16... Nxe5
{[%clk 0:01:33.2]} 17. dxe5 {[%clk 0:01:50.7]} 17... Qd5 {[%clk 0:01:10.7]} 18.
Nf4 {[%clk 0:01:38.8]} 18... Qxa2 {[%clk 0:01:05.5]} 19. Nxg6 {[%clk 0:01:37]}
19... hxg6 {[%clk 0:01:05.7]} 20. Bb1 {[%clk 0:01:04.8]} 20... Qa1 {[%clk
0:00:50.2]} 21. f3 {[%clk 0:00:59.6]} 21... Bf8 {[%clk 0:00:38.1]} 22. Qd2
{[%clk 0:00:50]} 22... Bd5 {[%clk 0:00:36.7]} 23. Qc2 {[%clk 0:00:33.7]} 23...
Bxf3 {[%clk 0:00:33.1]} 24. Qd2 {[%clk 0:00:19.3]} 24... Bd5 {[%clk 0:00:26]}
25. h4 {[%clk 0:00:17.4]} 25... O-O-O {[%clk 0:00:25.6]} 26. Qd4 {[%clk
0:00:13.4]} 26... Bh6+ {[%clk 0:00:25]} 27. Rd2 {[%clk 0:00:09.2]} 27... Bxd2+
{[%clk 0:00:22.4]} 28. Qxd2 {[%clk 0:00:10.2]} 28... Be4 {[%clk 0:00:22.7]} 0-1

[Event "*** Titled Tuesday Blitz"]
[Site "Chess.com"]
[Date "2019.03.05"]
[Round "3"]
[White "Winehouse83"]
[Black "INLOVEWITHF"]
[Result "1-0"]
[WhiteElo "2521"]
[BlackElo "2291"]
[TimeControl "180+2"]
[EndTime "13:41:24 PST"]
[Termination "Winehouse83 won by resignation"]

1. d4 {[%clk 0:02:56.5]} 1... d5 {[%clk 0:02:59.9]} 2. c4 {[%clk 0:02:53.5]}
2... c6 {[%clk 0:03:00.6]} 3. Nf3 {[%clk 0:02:54.4]} 3... Nf6 {[%clk 0:03:00.4]}
4. Nc3 {[%clk 0:02:55.2]} 4... e6 {[%clk 0:03:01.4]} 5. e3 {[%clk 0:02:55.6]}
5... Nbd7 {[%clk 0:03:02.2]} 6. Qc2 {[%clk 0:02:54.6]} 6... Bd6 {[%clk
0:03:01.7]} 7. g4 {[%clk 0:02:55.7]} 7... h6 {[%clk 0:03:02.3]} 8. Rg1 {[%clk
0:02:56.4]} 8... dxc4 {[%clk 0:03:01.1]} 9. Bxc4 {[%clk 0:02:56.8]} 9... b5
{[%clk 0:03:01.9]} 10. Bd3 {[%clk 0:02:57.3]} 10... Bb7 {[%clk 0:03:02.5]} 11.
h4 {[%clk 0:02:56.5]} 11... a6 {[%clk 0:02:58.5]} 12. g5 {[%clk 0:02:57.4]}
12... hxg5 {[%clk 0:02:57.6]} 13. hxg5 {[%clk 0:02:58.5]} 13... Nd5 {[%clk
0:02:58.2]} 14. g6 {[%clk 0:02:59.9]} 14... f5 {[%clk 0:02:57.8]} 15. a3 {[%clk
0:02:51.3]} 15... Qf6 {[%clk 0:02:54]} 16. e4 {[%clk 0:02:46]} 16... Nxc3 {[%clk
0:02:49.4]} 17. bxc3 {[%clk 0:02:22]} 17... fxe4 {[%clk 0:02:12.4]} 18. Bxe4
{[%clk 0:02:20.7]} 18... e5 {[%clk 0:02:01.3]} 19. Bg5 {[%clk 0:02:00.4]} 19...
Qe6 {[%clk 0:02:00.6]} 20. a4 {[%clk 0:01:46.1]} 20... b4 {[%clk 0:01:49.9]} 21.
Rb1 {[%clk 0:01:04.5]} 21... exd4 {[%clk 0:01:41.7]} 22. Nxd4 {[%clk 0:01:04.8]}
22... Qc4 {[%clk 0:01:38.8]} 23. Bd3 {[%clk 0:01:00.4]} 23... Qd5 {[%clk
0:01:33.3]} 24. Qe2+ {[%clk 0:00:56.3]} 24... Ne5 {[%clk 0:01:33.7]} 25. Be4
{[%clk 0:00:25.1]} 25... Qa5 {[%clk 0:01:25.5]} 26. f4 {[%clk 0:00:22.4]} 26...
bxc3 {[%clk 0:01:08.6]} 27. Rxb7 {[%clk 0:00:21.8]} 27... c2+ {[%clk 0:01:03.9]}
28. Kf2 {[%clk 0:00:22.5]} 28... Rh2+ {[%clk 0:01:01]} 29. Bg2 {[%clk
0:00:19.3]} 29... Qc3 {[%clk 0:00:58.8]} 30. Nxc2 {[%clk 0:00:09]} 30... Bc5+
{[%clk 0:00:54.9]} 31. Kf1 {[%clk 0:00:10.4]} 31... Bxg1 {[%clk 0:00:44.4]} 32.
Kxg1 {[%clk 0:00:11.4]} 32... Rxg2+ {[%clk 0:00:32.8]} 33. Kxg2 {[%clk
0:00:12.1]} 33... Kf8 {[%clk 0:00:33.8]} 34. fxe5 {[%clk 0:00:12.4]} 34... Re8
{[%clk 0:00:34.9]} 1-0

[Event "*** Titled Tuesday Blitz"]
[Site "Chess.com"]
[Date "2019.03.05"]
[Round "3"]
[White "TrickyTrapChess"]
[Black "vladimir_petrov"]
[Result "1-0"]
[WhiteElo "2314"]
[BlackElo "2384"]
[TimeControl "180+2"]
[EndTime "13:41:24 PST"]
[Termination "TrickyTrapChess won by checkmate"]

1. c4 {[%clk 0:03:01.9]} 1... Nf6 {[%clk 0:02:59.7]} 2. Nc3 {[%clk 0:03:00.2]}
2... c5 {[%clk 0:02:58.4]} 3. g3 {[%clk 0:02:56.8]} 3... d5 {[%clk 0:02:55.5]}
4. cxd5 {[%clk 0:02:55.9]} 4... Nxd5 {[%clk 0:02:56.4]} 5. Bg2 {[%clk
0:02:56.9]} 5... Nc7 {[%clk 0:02:56.9]} 6. e3 {[%clk 0:02:56.1]} 6... Nc6 {[%clk
0:02:55.4]} 7. Nge2 {[%clk 0:02:57.6]} 7... e5 {[%clk 0:02:50]} 8. O-O {[%clk
0:02:58.7]} 8... Be6 {[%clk 0:02:11.8]} 9. f4 {[%clk 0:02:43.1]} 9... Bd6 {[%clk
0:01:45.1]} 10. fxe5 {[%clk 0:01:44.2]} 10... Bxe5 {[%clk 0:01:44.5]} 11. Nf4
{[%clk 0:01:40]} 11... Bxf4 {[%clk 0:01:29.1]} 12. gxf4 {[%clk 0:01:31.8]} 12...
Bc4 {[%clk 0:01:25.8]} 13. Rf2 {[%clk 0:01:31.3]} 13... Bd3 {[%clk 0:01:25.9]}
14. Qg4 {[%clk 0:01:22.9]} 14... O-O {[%clk 0:01:23.5]} 15. Be4 {[%clk 0:01:15]}
15... c4 {[%clk 0:01:15.1]} 16. Rg2 {[%clk 0:01:13.7]} 16... g6 {[%clk
0:01:12.4]} 17. b3 {[%clk 0:01:05.6]} 17... f5 {[%clk 0:01:04.8]} 18. Bxd3
{[%clk 0:01:05.4]} 18... fxg4 {[%clk 0:01:04.5]} 19. Bxc4+ {[%clk 0:01:06.2]}
19... Kg7 {[%clk 0:00:48.1]} 20. Bb2 {[%clk 0:00:47.7]} 20... h5 {[%clk
0:00:48.6]} 21. Ne4+ {[%clk 0:00:42.6]} 21... Kh6 {[%clk 0:00:47.5]} 22. h3
{[%clk 0:00:31.2]} 22... gxh3 {[%clk 0:00:42.2]} 23. Rg3 {[%clk 0:00:27.7]}
23... Qh4 {[%clk 0:00:41.2]} 24. Kh2 {[%clk 0:00:25.8]} 24... Rae8 {[%clk
0:00:35.9]} 25. Rag1 {[%clk 0:00:21.6]} 25... Rg8 {[%clk 0:00:06.9]} 26. Nf6
{[%clk 0:00:17.9]} 26... Ref8 {[%clk 0:00:04.5]} 27. Nxg8+ {[%clk 0:00:18.3]}
27... Rxg8 {[%clk 0:00:05.7]} 28. Bxg8 {[%clk 0:00:19.6]} 28... Ne7 {[%clk
0:00:06.1]} 29. Bf7 {[%clk 0:00:18]} 29... Nf5 {[%clk 0:00:03.7]} 30. Rxg6+
{[%clk 0:00:18.2]} 30... Kh7 {[%clk 0:00:04.6]} 31. Bg8# {[%clk 0:00:18.7]} 1-0

[Event "*** Titled Tuesday Blitz"]
[Site "Chess.com"]
[Date "2019.03.05"]
[Round "3"]
[White "DrMelekess"]
[Black "Micki-taryan"]
[Result "0-1"]
[WhiteElo "2706"]
[BlackElo "2957"]
[TimeControl "180+2"]
[EndTime "13:41:27 PST"]
[Termination "Micki-taryan won by resignation"]

1. d4 {[%clk 0:03:01.9]} 1... Nf6 {[%clk 0:03:00.8]} 2. Nf3 {[%clk 0:02:59.4]}
2... e6 {[%clk 0:03:01.4]} 3. c4 {[%clk 0:03:00]} 3... b6 {[%clk 0:03:02]} 4. g3
{[%clk 0:03:01]} 4... Ba6 {[%clk 0:03:00.9]} 5. Qc2 {[%clk 0:03:01.7]} 5... Bb4+
{[%clk 0:02:51.7]} 6. Bd2 {[%clk 0:03:02.3]} 6... Be7 {[%clk 0:02:44]} 7. Bg2
{[%clk 0:03:02.5]} 7... c6 {[%clk 0:02:42.2]} 8. O-O {[%clk 0:03:02.4]} 8... d5
{[%clk 0:02:42.6]} 9. Ne5 {[%clk 0:03:01]} 9... O-O {[%clk 0:02:42.1]} 10. cxd5
{[%clk 0:02:41.9]} 10... cxd5 {[%clk 0:02:41.9]} 11. Nc3 {[%clk 0:02:42.7]}
11... Nfd7 {[%clk 0:02:41.5]} 12. Nxd7 {[%clk 0:02:29.5]} 12... Nxd7 {[%clk
0:02:43.4]} 13. Qa4 {[%clk 0:02:28.3]} 13... Bb7 {[%clk 0:02:35.7]} 14. Rac1
{[%clk 0:02:24.7]} 14... a6 {[%clk 0:02:30.3]} 15. Qb3 {[%clk 0:02:19.3]} 15...
b5 {[%clk 0:02:25.4]} 16. Bf4 {[%clk 0:02:05.9]} 16... Nb6 {[%clk 0:02:22.2]}
17. Nxb5 {[%clk 0:02:01.6]} 17... Nc4 {[%clk 0:01:56.1]} 18. Nc7 {[%clk
0:01:24.3]} 18... Ra7 {[%clk 0:01:47.4]} 19. Qa4 {[%clk 0:00:53.8]} 19... g5
{[%clk 0:01:38.2]} 20. Be5 {[%clk 0:00:32]} 20... Bc8 {[%clk 0:01:27]} 21. b3
{[%clk 0:00:23.2]} 21... Nxe5 {[%clk 0:01:26.5]} 22. Nxe6 {[%clk 0:00:15.1]}
22... Bxe6 {[%clk 0:01:21.7]} 23. dxe5 {[%clk 0:00:15.9]} 23... Qb8 {[%clk
0:01:21.6]} 24. f4 {[%clk 0:00:15]} 24... gxf4 {[%clk 0:01:07.4]} 25. gxf4
{[%clk 0:00:16.9]} 25... Bf5 {[%clk 0:01:08.8]} 26. Bxd5 {[%clk 0:00:14.4]}
26... Qb6+ {[%clk 0:01:09.6]} 27. Kh1 {[%clk 0:00:13.8]} 27... Kh8 {[%clk
0:01:11.1]} 28. Rg1 {[%clk 0:00:12.3]} 28... Qe3 {[%clk 0:01:07.5]} 29. Bf3
{[%clk 0:00:13]} 29... Bc5 {[%clk 0:01:04.5]} 30. Qc4 {[%clk 0:00:10.2]} 30...
Rc7 {[%clk 0:00:57.3]} 31. Qc3 {[%clk 0:00:08.1]} 31... Qxc3 {[%clk 0:00:39.9]}
32. Rxc3 {[%clk 0:00:10]} 32... Bxg1 {[%clk 0:00:41.8]} 33. Rxc7 {[%clk
0:00:10.8]} 33... Be3 {[%clk 0:00:43.7]} 34. Ra7 {[%clk 0:00:08.6]} 34... Rg8
{[%clk 0:00:44.5]} 35. h4 {[%clk 0:00:08.5]} 35... Bxa7 {[%clk 0:00:43.8]} 0-1